Workbook

Sheet STRUCTURE
A1: Poker Dom Cup & Deep Stack | G1: Main Event | M1: High Roller | S1: Live Sat Structure [1 Day Event, 10-20 Min Clock] | Y1: Side Events | AE1: Chinese
A2: Level | B2: SB | C2: BB | D2: Button or BB Ante | E2: Comments | G2: Level | H2: SB | I2: BB | J2: Button or BB Ante | K2: Comments | M2: Level | N2: SB | O2: BB | P2: Button or BB Ante | Q2: Comments | S2: Level | T2: SB | U2: BB | V2: Button or BB Ante | W2: Comments | Z2: SB | AA2: BB | AB2: Button or BB Ante | AC2: Normal Ante | AE2: Level | AF2: Point
A3: 1 | B3: 100 | C3: 200 | G3: 1 | H3: 100 | I3: 200 | J3: 200 | M3: 1 | N3: 100 | O3: 200 | P3: 200 | S3: 1 | T3: 25 | U3: 50 | V3: 50 | Y3: 1 | Z3: 25 | AA3: =+Z3*2 -> 50 | AB3: =AA3 -> 50 | AE3: 1 | AF3: 25
A4: 2 | B4: 100 | C4: 200 | D4: 200 | G4: 2 | H4: 100 | I4: 300 | J4: 300 | M4: 2 | N4: 100 | O4: 300 | P4: 300 | S4: 2 | T4: 50 | U4: 100 | V4: 100 | Y4: 2 | Z4: 50 | AA4: =+Z4*2 -> 100 | AB4: =AA4 -> 100 | AE4: 2 | AF4: 50
A5: 3 | B5: 100 | C5: 300 | D5: 300 | G5: 3 | H5: 200 | I5: 400 | J5: 400 | K5: Break 10 min | M5: 3 | N5: 200 | O5: 400 | P5: 400 | S5: 3 | T5: 75 | U5: 150 | V5: 150 | Y5: 3 | Z5: 75 | AA5: =+Z5*2 -> 150 | AB5: 150 | AC5: 25 | AE5: 3 | AF5: 75
A6: 4 | B6: 200 | C6: 400 | D6: 400 | G6: 4 | H6: 200 | I6: 500 | J6: 500 | M6: 4 | N6: 200 | O6: 500 | P6: 500 | S6: 4 | T6: 100 | U6: 200 | V6: 200 | Y6: 4 | Z6: 100 | AA6: =+Z6*2 -> 200 | AB6: 200 | AC6: 25 | AE6: 4 | AF6: 100
A7: 5 | B7: 200 | C7: 500 | D7: 500 | E7: Break 15 min | G7: 5 | H7: 300 | I7: 600 | J7: 600 | M7: 5 | N7: 300 | O7: 600 | P7: 600 | Q7: Break 15 min | S7: 5 | T7: 150 | U7: 300 | V7: 300 | Y7: 5 | Z7: 150 | AA7: 300 | AB7: 300 | AC7: 50 | AE7: 5 | AF7: 150
A8: 6 | B8: 300 | C8: 600 | D8: 600 | G8: 6 | H8: 400 | I8: 800 | J8: 800 | K8: Break 10 min | M8: 6 | N8: 400 | O8: 800 | P8: 800 | S8: 6 | T8: 200 | U8: 400 | V8: 400 | Y8: 6 | Z8: 200 | AA8: =+Z8*2 -> 400 | AB8: 400 | AC8: 50 | AE8: 6 | AF8: 200
A9: 7 | B9: 400 | C9: 800 | D9: 800 | G9: 7 | H9: 500 | I9: 1000 | J9: 1000 | M9: 7 | N9: 500 | O9: 1000 | P9: 1000 | S9: 7 | T9: 250 | U9: 500 | V9: 500 | Y9: 7 | Z9: 250 | AA9: 500 | AB9: 500 | AC9: 75 | AE9: 7 | AF9: 250
A10: 8 | B10: 500 | C10: 1000 | D10: 1000 | G10: 8 | H10: 600 | I10: 1200 | J10: 1200 | M10: 8 | N10: 600 | O10: 1200 | P10: 1200 | S10: 8 | T10: 300 | U10: 600 | V10: 600 | Y10: 8 | Z10: 300 | AA10: =+Z10*2 -> 600 | AB10: 600 | AC10: 100 | AE10: 8 | AF10: 300
A11: 9 | B11: 600 | C11: 1200 | D11: 1200 | G11: 9 | H11: 700 | I11: 1400 | J11: 1400 | K11: Break 40 min | M11: 9 | N11: 700 | O11: 1400 | P11: 1400 | S11: 9 | T11: 400 | U11: 800 | V11: 800 | W11: Late Reg Break 15 min | Y11: 9 | Z11: 400 | AA11: =+Z11*2 -> 800 | AB11: 800 | AC11: 100 | AE11: 9 Late Reg | AF11: 400
A12: 10 | B12: 700 | C12: 1400 | D12: 1400 | E12: End of Day 1 | G12: 10 | H12: 800 | I12: 1600 | J12: 1600 | M12: 10 | N12: 800 | O12: 1600 | P12: 1600 | Q12: End of Day 1 | S12: 10 | T12: 500 | U12: 1000 | V12: 1000 | Y12: 10 | Z12: 500 | AA12: =+Z12*2 -> 1000 | AB12: 1000 | AC12: 100 | AE12: 10 | AF12: 500
A13: 11 | B13: 800 | C13: 1600 | D13: 1600 | G13: 11 | H13: 900 | I13: 1800 | J13: 1800 | M13: 11 | N13: 900 | O13: 1800 | P13: 1800 | S13: 11 | T13: 600 | U13: 1200 | V13: 1200 | Y13: 11 | Z13: 600 | AA13: =+Z13*2 -> 1200 | AB13: 1200 | AC13: 200 | AE13: 11 | AF13: 600
A14: 12 | B14: 900 | C14: 1800 | D14: 1800 | G14: 12 | H14: 1000 | I14: 2000 | J14: 2000 | M14: 12 | N14: 1000 | O14: 2000 | P14: 2000 | S14: 12 | T14: 800 | U14: 1600 | V14: 1600 | Y14: 12 | Z14: 800 | AA14: =+Z14*2 -> 1600 | AB14: 1600 | AC14: 200 | AE14: 12 | AF14: 800
A15: 13 | B15: 1000 | C15: 2000 | D15: 2000 | G15: 13 | H15: 1200 | I15: 2500 | J15: 2500 | M15: 13 | N15: 1200 | O15: 2500 | P15: 2500 | S15: 13 | T15: 1000 | U15: 2000 | V15: 2000 | Y15: 13 | Z15: 1000 | AA15: 2000 | AB15: 2000 | AC15: 300 | AE15: 13 | AF15: 1000
A16: 14 | B16: 1200 | C16: 2500 | D16: 2500 | E16: Late Reg Break 20 min | G16: 14 | H16: 1500 | I16: 3000 | J16: 3000 | K16: Late Reg Break 20 min | M16: 14 | N16: 1500 | O16: 3000 | P16: 3000 | Q16: Late Reg Break 20 min | S16: 14 | T16: 1200 | U16: 2500 | V16: 2500 | Y16: 14 | Z16: 1200 | AA16: 2500 | AB16: 2500 | AC16: 400 | AE16: 14 | AF16: 1200
A17: 15 | B17: 1500 | C17: 3000 | D17: 3000 | G17: 15 | H17: 2000 | I17: 4000 | J17: 4000 | M17: 15 | N17: 2000 | O17: 4000 | P17: 4000 | S17: 15 | T17: 1500 | U17: 3000 | V17: 3000 | Y17: 15 | Z17: 1500 | AA17: 3000 | AB17: 3000 | AC17: 500 | AE17: 15 | AF17: 1500
A18: 16 | B18: 2000 | C18: 4000 | D18: 4000 | G18: 16 | H18: 2500 | I18: 5000 | J18: 5000 | M18: 16 | N18: 2500 | O18: 5000 | P18: 5000 | S18: 16 | T18: 2000 | U18: 4000 | V18: 4000 | Y18: 16 | Z18: 2000 | AA18: 4000 | AB18: 4000 | AC18: 500 | AE18: 16 | AF18: 1700
A19: 17 | B19: 2500 | C19: 5000 | D19: 5000 | E19: Break 10 min | G19: 17 | H19: 3000 | I19: 6000 | J19: 6000 | K19: Break 10 min | M19: 17 | N19: 3000 | O19: 6000 | P19: 6000 | S19: 17 | T19: 2500 | U19: 5000 | V19: 5000 | Y19: 17 | Z19: 2500 | AA19: 5000 | AB19: 5000 | AC19: 500 | AE19: 17 | AF19: 2000
A20: 18 | B20: 3000 | C20: 6000 | D20: 6000 | G20: 18 | H20: 4000 | I20: 8000 | J20: 8000 | M20: 18 | N20: 4000 | O20: 8000 | P20: 8000 | Q20: End of Day 2 | S20: 18 | T20: 3000 | U20: 6000 | V20: 6000 | Y20: 18 | Z20: 3000 | AA20: 6000 | AB20: 6000 | AC20: 1000 | AE20: 18 | AF20: 2500
A21: 19 | B21: 4000 | C21: 8000 | D21: 8000 | G21: 19 | H21: 5000 | I21: 10000 | J21: 10000 | M21: 19 | N21: 5000 | O21: 10000 | P21: 10000 | S21: 19 | T21: 4000 | U21: 8000 | V21: 8000 | W21: Break 10 min | Y21: 19 | Z21: 4000 | AA21: 8000 | AB21: 8000 | AC21: 1000 | AE21: 19 | AF21: 3000
A22: 20 | B22: 5000 | C22: 10000 | D22: 10000 | E22: End of Day 2 | G22: 20 | H22: 6000 | I22: 12000 | J22: 12000 | K22: End of Day 1 | M22: 20 | N22: 6000 | O22: 12000 | P22: 12000 | S22: 20 | T22: 5000 | U22: 10000 | V22: 10000 | Y22: 20 | Z22: 5000 | AA22: 10000 | AB22: 10000 | AC22: 1000 | AE22: 20 | AF22: 3500
A23: 21 | B23: 6000 | C23: 12000 | D23: 12000 | G23: 21 | H23: 8000 | I23: 16000 | J23: 16000 | M23: 21 | N23: 8000 | O23: 16000 | P23: 16000 | Q23: Break 10 min | S23: 21 | T23: 6000 | U23: 12000 | V23: 12000 | Y23: 21 | Z23: 6000 | AA23: 12000 | AB23: 12000 | AC23: 2000 | AE23: 21 | AF23: 4000
A24: 22 | B24: 8000 | C24: 16000 | D24: 16000 | G24: 22 | H24: 10000 | I24: 20000 | J24: 20000 | M24: 22 | N24: 10000 | O24: 20000 | P24: 20000 | S24: 22 | T24: 8000 | U24: 16000 | V24: 16000 | Y24: 22 | Z24: 8000 | AA24: 16000 | AB24: 16000 | AC24: 2000 | AE24: 22 | AF24: 5000
A25: 23 | B25: 10000 | C25: 20000 | D25: 20000 | G25: 23 | H25: 12000 | I25: 25000 | J25: 25000 | K25: Break 10 min | M25: 23 | N25: 12000 | O25: 25000 | P25: 25000 | S25: 23 | T25: 10000 | U25: 20000 | V25: 20000 | Y25: 23 | Z25: 10000 | AA25: 20000 | AB25: 20000 | AC25: 3000 | AE25: 23 | AF25: 6000
A26: 24 | B26: 12000 | C26: 25000 | D26: 25000 | E26: Break 10 min | G26: 24 | H26: 15000 | I26: 30000 | J26: 30000 | M26: 24 | N26: 15000 | O26: 30000 | P26: 30000 | Q26: Break 10 min | S26: 24 | T26: 12000 | U26: 25000 | V26: 25000 | Y26: 24 | Z26: 12000 | AA26: 25000 | AB26: 25000 | AC26: 4000 | AE26: 24 | AF26: 7000
A27: 25 | B27: 15000 | C27: 30000 | D27: 30000 | G27: 25 | H27: 20000 | I27: 40000 | J27: 40000 | M27: 25 | N27: 20000 | O27: 40000 | P27: 40000 | S27: 25 | T27: 15000 | U27: 30000 | V27: 30000 | W27: Break 10 min | Y27: 25 | Z27: 15000 | AA27: 30000 | AB27: 30000 | AC27: 5000 | AE27: 25 | AF27: 8000
A28: 26 | B28: 20000 | C28: 40000 | D28: 40000 | G28: 26 | H28: 25000 | I28: 50000 | J28: 50000 | K28: Break 10 min | M28: 26 | N28: 25000 | O28: 50000 | P28: 50000 | Q28: End of Day 3 | S28: 26 | T28: 20000 | U28: 40000 | V28: 40000 | Y28: 26 | Z28: 20000 | AA28: 40000 | AB28: 40000 | AC28: 5000 | AE28: 26 | AF28: 9000
A29: 27 | B29: 25000 | C29: 50000 | D29: 50000 | G29: 27 | H29: 30000 | I29: 60000 | J29: 60000 | M29: 27 | N29: 30000 | O29: 60000 | P29: 60000 | S29: 27 | T29: 25000 | U29: 50000 | V29: 50000 | Y29: 27 | Z29: 25000 | AA29: 50000 | AB29: 50000 | AC29: 5000 | AE29: 27 | AF29: 10000
A30: 28 | B30: 30000 | C30: 60000 | D30: 60000 | E30: Break 10 min | G30: 28 | H30: 40000 | I30: 80000 | J30: 80000 | K30: End of Day 2 | M30: 28 | N30: 40000 | O30: 80000 | P30: 80000 | S30: 28 | T30: 30000 | U30: 60000 | V30: 60000 | Y30: 28 | Z30: 30000 | AA30: 60000 | AB30: 60000 | AC30: 10000 | AE30: 28 | AF30: 12000
A31: 29 | B31: 40000 | C31: 80000 | D31: 80000 | G31: 29 | H31: 50000 | I31: 100000 | J31: 100000 | M31: 29 | N31: 50000 | O31: 100000 | P31: 100000 | Q31: Break 10 min | S31: 29 | T31: 40000 | U31: 80000 | V31: 80000 | Y31: 29 | Z31: 40000 | AA31: 80000 | AB31: 80000 | AC31: 10000 | AE31: 29 | AF31: 15000
A32: 30 | B32: 50000 | C32: 100000 | D32: 100000 | G32: 30 | H32: 60000 | I32: 120000 | J32: 120000 | M32: 30 | N32: 60000 | O32: 120000 | P32: 120000 | S32: 30 | T32: 50000 | U32: 100000 | V32: 100000 | Y32: 30 | Z32: 50000 | AA32: 100000 | AB32: 100000 | AC32: 10000 | AE32: 30 | AF32: 20000
A33: 31 | B33: 60000 | C33: 120000 | D33: 120000 | G33: 31 | H33: 80000 | I33: 160000 | J33: 160000 | K33: Break 10 min | M33: 31 | N33: 80000 | O33: 160000 | P33: 160000 | S33: 31 | T33: 60000 | U33: 120000 | V33: 120000 | W33: Break 10 min | Y33: 31 | Z33: 60000 | AA33: 120000 | AB33: 120000 | AC33: 20000 | AE33: 31 | AF33: 25000
A34: 32 | B34: 80000 | C34: 160000 | D34: 160000 | E34: Break 10 min | G34: 32 | H34: 100000 | I34: 200000 | J34: 200000 | M34: 32 | N34: 100000 | O34: 200000 | P34: 200000 | Q34: Break 10 min | S34: 32 | T34: 80000 | U34: 160000 | V34: 160000 | Y34: 32 | Z34: 80000 | AA34: 160000 | AB34: 160000 | AC34: 20000 | AE34: 32 | AF34: 30000
A35: 33 | B35: 100000 | C35: 200000 | D35: 200000 | G35: 33 | H35: 120000 | I35: 250000 | J35: 250000 | M35: 33 | N35: 120000 | O35: 250000 | P35: 250000 | S35: 33 | T35: 100000 | U35: 200000 | V35: 200000 | Y35: 33 | Z35: 100000 | AA35: 200000 | AB35: 200000 | AC35: 30000 | AE35: 33 | AF35: 40000
A36: 34 | B36: 120000 | C36: 250000 | D36: 250000 | G36: 34 | H36: 150000 | I36: 300000 | J36: 300000 | K36: Break 40 min | M36: 34 | N36: 150000 | O36: 300000 | P36: 300000 | S36: 34 | T36: 120000 | U36: 250000 | V36: 250000 | Y36: 34 | Z36: 120000 | AA36: 250000 | AB36: 250000 | AC36: 40000 | AE36: 34 | AF36: 50000
A37: 35 | B37: 150000 | C37: 300000 | D37: 300000 | G37: 35 | H37: 200000 | I37: 400000 | J37: 400000 | M37: 35 | N37: 200000 | O37: 400000 | P37: 400000 | Q37: Break 10 min | S37: 35 | T37: 150000 | U37: 300000 | V37: 300000 | Y37: 35 | Z37: 150000 | AA37: 300000 | AB37: 300000 | AC37: 50000 | AE37: 35 | AF37: 60000
A38: 36 | B38: 200000 | C38: 400000 | D38: 400000 | E38: Break 10 min | G38: 36 | H38: 250000 | I38: 500000 | J38: 500000 | M38: 36 | N38: 250000 | O38: 500000 | P38: 500000 | S38: 38 | T38: 200000 | U38: 400000 | V38: 400000 | Y38: 36 | Z38: =+Z28*10 -> 200000 | AA38: 400000 | AB38: 400000 | AC38: 50000 | AE38: 36 | AF38: 80000
A39: 37 | B39: 250000 | C39: 500000 | D39: 500000 | G39: 37 | H39: 300000 | I39: 600000 | J39: 600000 | K39: Break 10 min | M39: 37 | N39: 300000 | O39: 600000 | P39: 600000 | S39: 39 | T39: 250000 | U39: 500000 | V39: 500000 | Y39: 37 | Z39: 250000 | AA39: 500000 | AB39: 500000 | AC39: 50000 | AE39: 37 | AF39: 100000
A40: 38 | B40: 300000 | C40: 600000 | D40: 600000 | G40: 38 | H40: 400000 | I40: 800000 | J40: 800000 | M40: 38 | N40: 400000 | O40: 800000 | P40: 800000 | Q40: Break 10 min | S40: 40 | T40: 300000 | U40: 600000 | V40: 600000 | Y40: 38 | Z40: 300000 | AA40: 600000 | AB40: 600000 | AC40: 100000 | AE40: 38 | AF40: 120000
A41: 39 | B41: 400000 | C41: 800000 | D41: 800000 | G41: 39 | H41: 500000 | I41: 1000000 | J41: 1000000 | K41: End of Day 3 | M41: 39 | N41: 500000 | O41: 1000000 | P41: 1000000 | S41: 41 | T41: 400000 | U41: 800000 | V41: 800000 | Y41: 39 | Z41: 400000 | AA41: 800000 | AB41: 800000 | AC41: 100000 | AE41: 39 | AF41: 150000
A42: 40 | B42: 500000 | C42: 1000000 | D42: 1000000 | E42: Break 10 min | G42: 40 | H42: 600000 | I42: 1200000 | J42: 1200000 | M42: 40 | N42: 600000 | O42: 1200000 | P42: 1200000 | S42: 42 | T42: 500000 | U42: 1000000 | V42: 1000000 | Y42: 40 | Z42: 500000 | AA42: 1000000 | AB42: 1000000 | AC42: 100000 | AE42: 40 | AF42: 200000
A43: 41 | B43: 600000 | C43: 1200000 | D43: 1200000 | G43: 41 | H43: 800000 | I43: 1600000 | J43: 1600000 | M43: 41 | N43: 800000 | O43: 1600000 | P43: 1600000 | Q43: Break 10 min | S43: 43 | T43: 600000 | U43: 1200000 | V43: 1200000 | W43: Break 10 min | Y43: 41 | Z43: 600000 | AA43: 1200000 | AB43: 1200000 | AC43: 200000
A44: 42 | B44: 800000 | C44: 1600000 | D44: 1600000 | G44: 42 | H44: 1000000 | I44: 2000000 | J44: 2000000 | K44: Break 10 min | M44: 42 | N44: 1000000 | O44: 2000000 | P44: 2000000 | S44: 44 | T44: 800000 | U44: 1600000 | V44: 1600000 | Y44: 42 | Z44: 800000 | AA44: 1600000 | AB44: 1600000 | AC44: 200000
A45: 43 | B45: 1000000 | C45: 2000000 | D45: 2000000 | G45: 43 | H45: 1200000 | I45: 2500000 | J45: 2500000 | M45: 43 | N45: 1200000 | O45: 2500000 | P45: 2500000 | S45: 45 | T45: 1000000 | U45: 2000000 | V45: 2000000 | Y45: 43 | Z45: 1000000 | AA45: 2000000 | AB45: 2000000 | AC45: 300000
G46: 44 | H46: 1500000 | I46: 3000000 | J46: 3000000 | M46: 44 | N46: 1500000 | O46: 3000000 | P46: 3000000 | Q46: Break 10 min | S46: 46 | T46: 1200000 | U46: 2500000 | V46: 2500000 | Y46: 44 | Z46: 1200000 | AA46: 2500000 | AB46: 2500000 | AC46: 400000
G47: 45 | H47: 2000000 | I47: 4000000 | J47: 4000000 | K47: Break 10 min | M47: 45 | N47: 2000000 | O47: 4000000 | P47: 4000000 | S47: 47 | T47: 1500000 | U47: 3000000 | V47: 3000000 | Y47: 45 | Z47: 1500000 | AA47: 3000000 | AB47: 3000000 | AC47: 500000
G48: 46 | H48: 2500000 | I48: 5000000 | J48: 5000000 | M48: 46 | N48: 2500000 | O48: 5000000 | P48: 5000000 | S48: 48 | T48: 2000000 | U48: 4000000 | V48: 4000000 | Y48: 46 | Z48: 2000000 | AA48: 4000000 | AB48: 4000000 | AC48: 500000
G49: 47 | H49: 3000000 | I49: 6000000 | J49: 6000000 | M49: 47 | N49: 3000000 | O49: 6000000 | P49: 6000000 | S49: 49 | T49: 2500000 | U49: 5000000 | V49: 5000000 | Y49: 47 | Z49: 2500000 | AA49: 5000000 | AB49: 5000000 | AC49: 500000
S50: 50 | T50: 3000000 | U50: 6000000 | V50: 6000000 | Y50: 48 | Z50: 3000000 | AA50: 6000000 | AB50: 6000000 | AC50: 1000000
